fUSD/lending_fUSD_20250112
["ID","MTS","AMOUNT","RATE_DAILY","PERIOD"]
[348620480,1736680232994,-641.41,9.979e-05,2]
[348620481,1736680233003,-1019.87,9.979e-05,2]
[348620483,1736680233013,-965.25491168,9.98e-05,2]
[348620488,1736680233055,-58420.41594809,9.98e-05,2]
[348620490,1736680233067,-37600.01496249,9.98e-05,2]
[348620493,1736680233081,-856.04257068,9.98e-05,2]
[348620495,1736680233093,-1008.7217319,9.98e-05,2]
[348620500,1736680233133,-2052.3758564,9.98e-05,2]
[348620501,1736680233146,-711.47500005,9.98e-05,2]
[348620502,1736680233157,-1198.4,9.98e-05,2]
[348620503,1736680233169,-929.64434,9.98e-05,2]
[348620504,1736680233193,-8257.77068302,9.98e-05,2]
[348620515,1736680238209,-653.67901261,9.979e-05,2]
[348620517,1736680238753,-641.685354,9.979e-05,2]
[348620518,1736680238764,-856.01563339,9.979e-05,2]
[348620519,1736680238773,-24.80538672,9.98e-05,2]
[348620520,1736680238784,-4987.94296,9.98e-05,2]
[348620533,1736680240470,-1032.43,9.979e-05,2]
[348620534,1736680240479,-191268.50516534,9.98e-05,2]
[348620535,1736680240670,-2354.88535283,9.98e-05,2]
[348620539,1736680243397,-389.61231329,9.979e-05,2]
[348620542,1736680243599,-679.69768671,9.979e-05,2]
[348620543,1736680243610,-22341.09373981,9.98e-05,2]
[348620544,1736680243638,-366.73480645,9.98e-05,2]
[348620545,1736680243664,-7847.90186359,9.98e-05,2]
[348620548,1736680246493,-167.78811425,9.979e-05,2]
[348620549,1736680246503,-329.48304767,9.98e-05,2]
[348620550,1736680246527,-540.16545331,9.98e-05,2]
[348620551,1736680246662,-4755.75,9.98e-05,2]
[348620552,1736680246755,-2602.99497111,9.98e-05,2]
[348620570,1736680323799,1000.0,9.9e-05,10]
[348620571,1736680387554,500.0,9.985e-05,7]
[348620572,1736680536119,171.65663207,0.00023,120]
[348620574,1736680963626,1094.56,8.219e-05,2]
[348620575,1736681045628,1152.456219,0.00023,120]
[348620576,1736681076841,181.33,7.191e-05,2]
[348620580,1736681151496,1832.24052274,0.00023,120]
[348620601,1736681319723,197.17,9.984e-05,7]
[348620650,1736681431690,-197.02,8.985e-05,2]
[348620651,1736681431699,-91.83173757,8.987e-05,2]
[348620652,1736681431712,-263.77826243,8.987e-05,2]
[348620653,1736681431721,-250.0,8.988e-05,2]
[348620654,1736681431731,-1000.0,8.992e-05,2]
[348620655,1736681431741,-338.94,8.995e-05,2]
[348620656,1736681431752,-150.0,9e-05,2]
[348620657,1736681431762,-150.0,9e-05,2]
[348620658,1736681431771,-150.0,9e-05,2]
[348620659,1736681431780,-150.0,9e-05,2]
[348620660,1736681431790,-250.0,9.001e-05,2]
[348620661,1736681431799,-20324.26242344,9.005e-05,2]
[348620662,1736681431918,-815.39757656,9.005e-05,2]
[348620663,1736681431930,-150.0,9.5e-05,2]
[348620664,1736681431940,-979.91418467,9.9e-05,2]
[348620665,1736681431949,-3079.75594581,9.969e-05,2]
[348620666,1736681431958,-151.86597302,9.973e-05,2]
[348620667,1736681431971,-1000.0,9.978e-05,2]
[348620668,1736681431980,-150.0,9.978e-05,2]
[348620669,1736681431989,-506.02,9.979e-05,2]
[348620670,1736681431998,-676.55,9.979e-05,2]
[348620671,1736681432008,-541.57,9.979e-05,2]
[348620672,1736681432018,-157.585551,9.979e-05,2]
[348620673,1736681432027,-837.96,9.979e-05,2]
[348620674,1736681432035,-915.61,9.979e-05,2]
[348620675,1736681432047,-502.7078102,9.979e-05,2]
[348620676,1736681432056,-500.0,9.979e-05,2]
[348620677,1736681432065,-500.0,9.979e-05,2]
[348620678,1736681432074,-721.78,9.979e-05,2]
[348620679,1736681432083,-500.0,9.979e-05,2]
[348620680,1736681432092,-500.0,9.979e-05,2]
[348620681,1736681432101,-500.0,9.979e-05,2]
[348620682,1736681432110,-616.99,9.979e-05,2]
[348620683,1736681432119,-500.0,9.979e-05,2]
[348620684,1736681432128,-1171.4,9.979e-05,2]
[348620685,1736681432137,-585.79,9.979e-05,2]
[348620686,1736681432147,-500.0,9.979e-05,2]
[348620687,1736681432156,-500.0,9.979e-05,2]
[348620688,1736681432165,-500.0,9.979e-05,2]
[348620689,1736681432174,-729.88,9.979e-05,2]
[348620690,1736681432183,-530.04,9.979e-05,2]
[348620691,1736681432192,-657.17,9.979e-05,2]
[348620692,1736681432201,-500.0,9.979e-05,2]
[348620693,1736681432212,-542.44,9.979e-05,2]
[348620694,1736681432220,-500.0,9.979e-05,2]
[348620695,1736681432229,-500.0,9.979e-05,2]
[348620696,1736681432238,-500.0,9.979e-05,2]
[348620697,1736681432247,-594.28,9.979e-05,2]
[348620698,1736681432256,-500.0,9.979e-05,2]
[348620699,1736681432265,-500.0,9.979e-05,2]
[348620700,1736681432274,-500.0,9.979e-05,2]
[348620701,1736681432283,-500.0,9.979e-05,2]
[348620702,1736681432291,-905.43,9.979e-05,2]
[348620703,1736681432300,-595.61,9.979e-05,2]
[348620704,1736681432309,-683.06,9.979e-05,2]
[348620705,1736681432318,-659.44,9.979e-05,2]
[348620706,1736681432328,-749.35,9.979e-05,2]
[348620707,1736681432337,-547.14,9.979e-05,2]
[348620708,1736681432346,-744.16,9.979e-05,2]
[348620709,1736681432355,-1217.84,9.979e-05,2]
[348620710,1736681432364,-719.37,9.979e-05,2]
[348620711,1736681432374,-500.0,9.979e-05,2]
[348620712,1736681432383,-617.1,9.979e-05,2]
[348620713,1736681432392,-629.98,9.979e-05,2]
[348620714,1736681432401,-573.13,9.979e-05,2]
[348620715,1736681432410,-1262.87,9.979e-05,2]
[348620716,1736681432419,-500.0,9.979e-05,2]
[348620717,1736681432428,-500.0,9.979e-05,2]
[348620720,1736681432437,-736.01,9.979e-05,2]
[348620722,1736681432447,-538.86,9.979e-05,2]
[348620723,1736681432456,-501.58268525,9.979e-05,2]
[348620724,1736681432466,-500.0,9.979e-05,2]
[348620725,1736681432475,-500.0,9.979e-05,2]
[348620726,1736681432485,-1510.87,9.979e-05,2]
[348620727,1736681432494,-500.0,9.979e-05,2]
[348620728,1736681432503,-597.56,9.979e-05,2]
[348620729,1736681432512,-545.98,9.979e-05,2]
[348620730,1736681432521,-500.0,9.979e-05,2]
[348620731,1736681432531,-500.0,9.979e-05,2]
[348620732,1736681432541,-1103.2,9.979e-05,2]
[348620733,1736681432551,-601.53,9.979e-05,2]
[348620734,1736681432560,-811.54,9.979e-05,2]
[348620735,1736681432570,-907.01,9.979e-05,2]
[348620736,1736681432579,-500.0,9.979e-05,2]
[348620737,1736681432589,-500.0,9.979e-05,2]
[348620738,1736681432598,-500.0,9.979e-05,2]
[348620739,1736681432608,-500.0,9.979e-05,2]
[348620740,1736681432617,-2578.41,9.979e-05,2]
[348620741,1736681432627,-535.88,9.979e-05,2]
[348620742,1736681432636,-500.0,9.979e-05,2]
[348620743,1736681432646,-589.5,9.979e-05,2]
[348620744,1736681432655,-575.72,9.979e-05,2]
[348620745,1736681432664,-1449.5,9.979e-05,2]
[348620746,1736681432674,-1019.68,9.979e-05,2]
[348620747,1736681432683,-926.04,9.979e-05,2]
[348620748,1736681432692,-2532.21,9.979e-05,2]
[348620749,1736681432702,-1042.59,9.979e-05,2]
[348620750,1736681432712,-1004.12,9.979e-05,2]
[348620751,1736681432722,-3183.81,9.979e-05,2]
[348620752,1736681432731,-500.0,9.979e-05,2]
[348620753,1736681432740,-647.65,9.979e-05,2]
[348620754,1736681432750,-500.0,9.979e-05,2]
[348620755,1736681432759,-500.0,9.979e-05,2]
[348620756,1736681432768,-500.0,9.979e-05,2]
[348620757,1736681432779,-500.0,9.979e-05,2]
[348620758,1736681432789,-551.36,9.979e-05,2]
[348620759,1736681432798,-500.0,9.979e-05,2]
[348620760,1736681432808,-500.0,9.979e-05,2]
[348620761,1736681432818,-519.84,9.979e-05,2]
[348620762,1736681432827,-1503.99,9.979e-05,2]
[348620763,1736681432837,-3822.85,9.979e-05,2]
[348620764,1736681432846,-662.11,9.979e-05,2]
[348620765,1736681432855,-27755.57969626,9.98e-05,2]
[348620766,1736681432865,-256.36462118,9.98e-05,2]
[348620767,1736681432874,-2824.0415526,9.98e-05,2]
[348620768,1736681432884,-500.0,9.982e-05,2]
[348620769,1736681432893,-2456.98,9.982e-05,2]
[348620770,1736681432902,-3628.6,9.982e-05,2]
[348620771,1736681432912,-2059.76,9.982e-05,2]
[348620772,1736681432921,-500.0,9.982e-05,2]
[348620773,1736681432931,-1395.58,9.982e-05,2]
[348620774,1736681432940,-3278.84,9.982e-05,2]
[348620775,1736681432949,-500.0,9.982e-05,2]
[348620776,1736681432959,-500.0,9.982e-05,2]
[348620777,1736681432970,-535.56,9.982e-05,2]
[348620778,1736681432979,-500.0,9.982e-05,2]
[348620779,1736681432988,-500.0,9.982e-05,2]
[348620780,1736681432998,-500.0,9.982e-05,2]
[348620781,1736681433007,-500.0,9.982e-05,2]
[348620782,1736681433017,-977.37,9.982e-05,2]
[348620783,1736681433026,-503.1530637,9.983e-05,2]
[348620784,1736681433035,-591.69186423,9.983e-05,2]
[348620785,1736681433044,-503.20599932,9.983e-05,2]
[348620786,1736681433053,-635.82351352,9.983e-05,2]
[348620787,1736681433063,-503.54564719,9.983e-05,2]
[348620788,1736681433073,-270.37212377,9.983e-05,2]
[348620789,1736681433082,-500.0,9.983e-05,2]
[348620790,1736681433091,-500.0,9.983e-05,2]
[348620791,1736681433101,-500.0,9.983e-05,2]
[348620792,1736681433110,-503.22456951,9.983e-05,2]
[348620793,1736681433120,-500.0,9.983e-05,2]
[348620794,1736681433129,-1024.75,9.983e-05,2]
[348620795,1736681433138,-341.79239332,9.983e-05,2]
[348620796,1736681433147,-501.5627085,9.983e-05,2]
[348620797,1736681433156,-501.54633416,9.983e-05,2]
[348620798,1736681433165,-500.0,9.983e-05,2]
[348620799,1736681433175,-501.59265713,9.983e-05,2]
[348620800,1736681433184,-500.0,9.983e-05,2]
[348620801,1736681433193,-839.26,9.983e-05,2]
[348620802,1736681433202,-500.0,9.983e-05,2]
[348620803,1736681433212,-1406.34,9.983e-05,2]
[348620804,1736681433222,-756.27,9.983e-05,2]
[348620805,1736681433231,-500.0,9.983e-05,2]
[348620806,1736681433240,-500.0,9.983e-05,2]
[348620807,1736681433250,-500.0,9.983e-05,2]
[348620808,1736681433259,-500.86825527,9.983e-05,2]
[348620809,1736681433269,-500.0,9.983e-05,2]
[348620810,1736681433278,-500.0,9.983e-05,2]
[348620811,1736681433288,-330.14440531,9.983e-05,2]
[348620812,1736681433297,-500.3007908,9.983e-05,2]
[348620813,1736681433306,-500.0,9.983e-05,2]
[348620814,1736681433316,-1117.75,9.983e-05,2]
[348620815,1736681433326,-500.0,9.983e-05,2]
[348620816,1736681433335,-500.0,9.983e-05,2]
[348620817,1736681433344,-500.0,9.983e-05,2]
[348620818,1736681433353,-500.0,9.983e-05,2]
[348620819,1736681433363,-500.63910448,9.983e-05,2]
[348620820,1736681433372,-500.0,9.983e-05,2]
[348620821,1736681433381,-500.0,9.983e-05,2]
[348620822,1736681433390,-1008.81,9.983e-05,2]
[348620823,1736681433399,-500.21010014,9.983e-05,2]
[348620824,1736681433408,-500.0,9.983e-05,2]
[348620825,1736681433417,-501.44464057,9.983e-05,2]
[348620826,1736681433427,-1060.01,9.983e-05,2]
[348620827,1736681433436,-500.0,9.983e-05,2]
[348620828,1736681433445,-709.89,9.983e-05,2]
[348620829,1736681433455,-500.0,9.983e-05,2]
[348620830,1736681433466,-500.0,9.983e-05,2]
[348620831,1736681433475,-500.63302252,9.983e-05,2]
[348620832,1736681433485,-500.86931339,9.983e-05,2]
[348620833,1736681433494,-500.46404181,9.983e-05,2]
[348620834,1736681433503,-500.0,9.983e-05,2]
[348620835,1736681433512,-500.36222462,9.983e-05,2]
[348620836,1736681433522,-500.0,9.983e-05,2]
[348620837,1736681433532,-500.38635359,9.983e-05,2]
[348620838,1736681433542,-500.0,9.983e-05,2]
[348620839,1736681433551,-500.0,9.983e-05,2]
[348620840,1736681433561,-501.1912455,9.983e-05,2]
[348620841,1736681433570,-536.44,9.983e-05,2]
[348620842,1736681433579,-500.0,9.983e-05,2]
[348620843,1736681433588,-500.0,9.983e-05,2]
[348620844,1736681433598,-989.41,9.983e-05,2]
[348620845,1736681433607,-500.0,9.983e-05,2]
[348620846,1736681433616,-987.96,9.983e-05,2]
[348620847,1736681433626,-500.0,9.983e-05,2]
[348620848,1736681433636,-500.0,9.983e-05,2]
[348620849,1736681433645,-500.0,9.983e-05,2]
[348620850,1736681433655,-784.38,9.983e-05,2]
[348620851,1736681433664,-500.28797475,9.983e-05,2]
[348620852,1736681433674,-500.49177106,9.983e-05,2]
[348620853,1736681433683,-500.0,9.983e-05,2]
[348620854,1736681433693,-500.0,9.983e-05,2]
[348620855,1736681433702,-500.0,9.983e-05,2]
[348620856,1736681433713,-500.0,9.983e-05,2]
[348620857,1736681433723,-500.0,9.983e-05,2]
[348620858,1736681433732,-157.60171822,9.983e-05,2]
[348620859,1736681433742,-500.0,9.983e-05,2]
[348620860,1736681433751,-500.0,9.983e-05,2]
[348620861,1736681433761,-1823.63,9.983e-05,2]
[348620862,1736681433981,-500.0,9.983e-05,2]
[348620863,1736681433991,-500.0,9.983e-05,2]
[348620864,1736681434000,-972.58,9.983e-05,2]
[348620865,1736681434011,-500.0,9.983e-05,2]
[348620866,1736681434020,-500.0,9.983e-05,2]
[348620867,1736681434029,-500.0,9.983e-05,2]
[348620868,1736681434038,-500.0,9.983e-05,2]
[348620869,1736681434051,-874.56,9.983e-05,2]
[348620870,1736681434061,-500.0,9.983e-05,2]
[348620871,1736681434070,-500.0,9.983e-05,2]
[348620872,1736681434080,-501.68552284,9.983e-05,2]
[348620873,1736681434089,-500.0,9.983e-05,2]
[348620874,1736681434099,-590.22,9.983e-05,2]
[348620875,1736681434108,-500.0,9.983e-05,2]
[348620876,1736681434117,-502.16964848,9.983e-05,2]
[348620877,1736681434128,-500.0,9.983e-05,2]
[348620878,1736681434138,-500.0,9.983e-05,2]
[348620879,1736681434147,-550.36,9.983e-05,2]
[348620880,1736681434158,-500.0,9.983e-05,2]
[348620881,1736681434167,-500.0,9.983e-05,2]
[348620882,1736681434177,-527.17,9.983e-05,2]
[348620883,1736681434186,-500.0,9.983e-05,2]
[348620884,1736681434196,-869.63,9.983e-05,2]
[348620885,1736681434206,-580.63,9.983e-05,2]
[348620886,1736681434216,-1151.49,9.983e-05,2]
[348620887,1736681434226,-1063.95,9.983e-05,2]
[348620888,1736681434235,-500.0,9.983e-05,2]
[348620889,1736681434246,-500.0,9.983e-05,2]
[348620890,1736681434255,-700.64,9.983e-05,2]
[348620891,1736681434265,-500.0,9.983e-05,2]
[348620892,1736681434274,-930.25,9.983e-05,2]
[348620893,1736681434284,-886.46,9.983e-05,2]
[348620894,1736681434294,-500.0,9.983e-05,2]
[348620895,1736681434303,-500.0,9.983e-05,2]
[348620896,1736681434313,-500.0,9.983e-05,2]
[348620897,1736681434322,-500.0,9.983e-05,2]
[348620898,1736681434332,-500.0,9.983e-05,2]
[348620899,1736681434341,-500.0,9.983e-05,2]
[348620900,1736681434351,-911.79,9.983e-05,2]
[348620901,1736681434360,-501.59608129,9.983e-05,2]
[348620902,1736681434370,-509.96,9.983e-05,2]
[348620903,1736681434379,-1796.75,9.983e-05,2]
[348620904,1736681434389,-500.0,9.983e-05,2]
[348620905,1736681434398,-674.02,9.983e-05,2]
[348620906,1736681434408,-500.0,9.983e-05,2]
[348620907,1736681434417,-500.0,9.983e-05,2]
[348620908,1736681434426,-500.0,9.983e-05,2]
[348620909,1736681434435,-500.0,9.983e-05,2]
[348620910,1736681434445,-500.0,9.983e-05,2]
[348620911,1736681434454,-2589.95,9.983e-05,2]
[348620912,1736681434464,-500.0,9.983e-05,2]
[348620913,1736681434473,-500.0,9.983e-05,2]
[348620914,1736681434482,-648.73348907,9.983e-05,2]
[348620915,1736681434491,-501.02885426,9.983e-05,2]
[348620916,1736681434499,-978.19,9.983e-05,2]
[348620917,1736681434509,-500.0,9.983e-05,2]
[348620918,1736681434517,-500.0,9.983e-05,2]
[348620919,1736681434527,-577.97,9.983e-05,2]
[348620920,1736681434537,-500.0,9.983e-05,2]
[348620921,1736681434546,-2020.84,9.983e-05,2]
[348620922,1736681434555,-762.83,9.983e-05,2]
[348620923,1736681434564,-500.0,9.983e-05,2]
[348620924,1736681434574,-500.0,9.983e-05,2]
[348620925,1736681434583,-888.8,9.983e-05,2]
[348620926,1736681434592,-501.26982791,9.983e-05,2]
[348620927,1736681434601,-567.29,9.983e-05,2]
[348620928,1736681434611,-1217.21,9.983e-05,2]
[348620929,1736681434620,-800.04,9.983e-05,2]
[348620930,1736681434630,-1600.05,9.983e-05,2]
[348620931,1736681434639,-500.0,9.983e-05,2]
[348620932,1736681434648,-500.0,9.983e-05,2]
[348620933,1736681434657,-232.93395218,9.983e-05,2]
[348620934,1736681434667,-648.92,9.983e-05,2]
[348620935,1736681434676,-745.88,9.983e-05,2]
[348620936,1736681434686,-540.2,9.983e-05,2]
[348620937,1736681434695,-1732.81,9.983e-05,2]
[348620938,1736681434705,-2061.74,9.983e-05,2]
[348620939,1736681434715,-500.0,9.983e-05,2]
[348620940,1736681434724,-902.43,9.983e-05,2]
[348620941,1736681434734,-2470.310468,9.983e-05,2]
[348620942,1736681434743,-502.31117558,9.983e-05,2]
[348620943,1736681434752,-505.47479646,9.983e-05,2]
[348620944,1736681434761,-917.85,9.983e-05,2]
[348620945,1736681434770,-836.97,9.983e-05,2]
[348620946,1736681434779,-573.27,9.983e-05,2]
[348620947,1736681434788,-500.0,9.983e-05,2]
[348620948,1736681434797,-3280.24,9.983e-05,2]
[348620949,1736681434806,-692.41,9.983e-05,2]
[348620950,1736681434816,-500.0,9.983e-05,2]
[348620951,1736681434825,-3552.160764,9.983e-05,2]
[348620952,1736681434835,-1354.1,9.983e-05,2]
[348620953,1736681434844,-1168.46,9.983e-05,2]
[348620954,1736681434853,-500.0,9.983e-05,2]
[348620955,1736681434862,-3797.81,9.983e-05,2]
[348620956,1736681434872,-157.26675,9.983e-05,2]
[348620957,1736681434882,-157.898095,9.983e-05,2]
[348620958,1736681434892,-157.54953626,9.983e-05,2]
[348620959,1736681434901,-2828.68,9.983e-05,2]
[348620960,1736681434911,-460.51966394,9.983e-05,2]
[348620961,1736681434920,-862.23,9.983e-05,2]
[348620962,1736681434930,-9479.3,9.983e-05,2]
[348620963,1736681434939,-1179.99,9.983e-05,2]
[348620964,1736681434948,-500.0,9.983e-05,2]
[348620965,1736681434958,-500.0,9.983e-05,2]
[348620966,1736681434969,-676.48,9.983e-05,2]
[348620967,1736681434979,-977.64,9.983e-05,2]
[348620968,1736681434988,-590.32,9.983e-05,2]
[348620969,1736681434997,-827.86,9.983e-05,2]
[348620970,1736681435008,-739.39,9.983e-05,2]
[348620971,1736681435017,-500.0,9.983e-05,2]
[348620972,1736681435026,-545.27,9.983e-05,2]
[348620973,1736681435035,-500.0,9.983e-05,2]
[348620974,1736681435045,-564.37743811,9.983e-05,2]
[348620975,1736681435054,-1324.81,9.983e-05,2]
[348620976,1736681435063,-500.0,9.983e-05,2]
[348620977,1736681435073,-1284.46,9.983e-05,2]
[348620978,1736681435082,-500.0,9.983e-05,2]
[348620979,1736681435091,-503.2774497,9.983e-05,2]
[348620980,1736681435100,-500.0,9.983e-05,2]
[348620981,1736681435110,-500.0,9.983e-05,2]
[348620982,1736681435120,-792.92,9.983e-05,2]
[348620983,1736681435129,-169.24064,9.983e-05,2]
[348620984,1736681435139,-2572.29,9.983e-05,2]
[348620985,1736681435148,-644.82,9.983e-05,2]
[348620986,1736681435157,-500.0,9.983e-05,2]
[348620987,1736681435166,-500.0,9.983e-05,2]
[348620988,1736681435176,-500.0,9.983e-05,2]
[348620989,1736681435185,-500.0,9.983e-05,2]
[348620990,1736681435194,-1002.03,9.983e-05,2]
[348620991,1736681435203,-676.5,9.983e-05,2]
[348620992,1736681435212,-5007.19,9.983e-05,2]
[348620993,1736681435221,-2037.35,9.983e-05,2]
[348620994,1736681435230,-1041.16,9.983e-05,2]
[348620995,1736681435239,-1185.6,9.983e-05,2]
[348620996,1736681435248,-150.59413415,9.983e-05,2]
[348620997,1736681435257,-505.77845107,9.983e-05,2]
[348620998,1736681435266,-1552.15,9.983e-05,2]
[348620999,1736681435275,-500.0,9.983e-05,2]
[348621000,1736681435284,-492.98887248,9.983e-05,2]
[348621001,1736681435293,-500.0,9.983e-05,2]
[348621002,1736681435302,-902.96,9.983e-05,2]
[348621003,1736681435311,-1047.62,9.983e-05,2]
[348621004,1736681435320,-1021.64,9.983e-05,2]
[348621005,1736681435329,-3407.31,9.983e-05,2]
[348621006,1736681435338,-632.77,9.983e-05,2]
[348621007,1736681435347,-546.04,9.983e-05,2]
[348621008,1736681435357,-3405.33,9.983e-05,2]
[348621009,1736681435366,-503.02478818,9.983e-05,2]
[348621010,1736681435375,-762.96,9.983e-05,2]
[348621011,1736681435384,-2161.12,9.983e-05,2]
[348621012,1736681435393,-315.21833998,9.983e-05,2]
[348621013,1736681435401,-500.0,9.983e-05,2]
[348621014,1736681435411,-1279.62,9.983e-05,2]
[348621015,1736681435420,-575.11,9.983e-05,2]
[348621016,1736681435429,-893.46,9.983e-05,2]
[348621017,1736681435439,-501.4012132,9.983e-05,2]
[348621018,1736681435448,-511.62455065,9.983e-05,2]
[348621019,1736681435457,-882.34,9.983e-05,2]
[348621020,1736681435467,-802.58,9.983e-05,2]
[348621021,1736681435476,-500.0,9.983e-05,2]
[348621022,1736681435485,-500.0,9.984e-05,2]
[348621023,1736681435495,-500.0,9.984e-05,2]
[348621024,1736681435504,-500.0,9.984e-05,2]
[348621025,1736681435514,-500.0,9.984e-05,2]
[348621026,1736681435525,-500.0,9.984e-05,2]
[348621027,1736681435534,-500.0,9.984e-05,2]
[348621028,1736681435544,-500.0,9.984e-05,2]
[348621029,1736681435553,-500.0,9.984e-05,2]
[348621030,1736681435563,-500.0,9.984e-05,2]
[348621031,1736681435572,-500.0,9.984e-05,2]
[348621032,1736681435582,-485.77822791,9.984e-05,2]
[348621033,1736681435591,-500.0,9.984e-05,2]
[348621034,1736681435600,-500.0,9.984e-05,2]
[348621035,1736681435609,-500.0,9.984e-05,2]
[348621036,1736681435619,-505.08,9.984e-05,2]
[348621037,1736681435628,-500.0,9.984e-05,2]
[348621038,1736681435637,-500.0,9.984e-05,2]
[348621039,1736681435646,-500.0,9.984e-05,2]
[348621040,1736681435656,-500.0,9.984e-05,2]
[348621041,1736681435665,-500.0,9.984e-05,2]
[348621042,1736681435675,-500.0,9.984e-05,2]
[348621043,1736681435684,-500.0,9.984e-05,2]
[348621044,1736681435694,-500.0,9.984e-05,2]
[348621045,1736681435703,-500.0,9.984e-05,2]
[348621046,1736681435713,-500.0,9.984e-05,2]
[348621047,1736681435723,-500.0,9.984e-05,2]
[348621048,1736681435732,-500.0,9.984e-05,2]
[348621049,1736681435742,-500.0,9.984e-05,2]
[348621050,1736681435751,-500.0,9.984e-05,2]
[348621051,1736681435760,-500.0,9.984e-05,2]
[348621052,1736681435770,-500.0,9.984e-05,2]
[348621053,1736681435780,-500.0,9.984e-05,2]
[348621054,1736681435790,-500.0,9.984e-05,2]
[348621055,1736681435799,-500.0,9.984e-05,2]
[348621056,1736681435809,-500.0,9.984e-05,2]
[348621057,1736681435821,-507.84611081,9.984e-05,2]
[348621058,1736681435830,-500.0,9.984e-05,2]
[348621059,1736681435840,-502.69828812,9.984e-05,2]
[348621060,1736681435849,-500.0,9.984e-05,2]
[348621061,1736681435858,-501.0798274,9.984e-05,2]
[348621062,1736681435867,-500.0,9.984e-05,2]
[348621063,1736681435877,-500.0,9.984e-05,2]
[348621064,1736681435886,-500.0,9.984e-05,2]
[348621065,1736681435895,-547.83,9.984e-05,2]
[348621066,1736681435904,-500.0,9.984e-05,2]
[348621067,1736681435914,-196.93857927,9.984e-05,2]
[348621068,1736681435923,-500.0,9.984e-05,2]
[348621069,1736681435932,-500.0,9.984e-05,2]
[348621070,1736681435941,-500.0,9.984e-05,2]
[348621071,1736681435951,-505.01218029,9.984e-05,2]
[348621072,1736681435960,-501.52167766,9.984e-05,2]
[348621073,1736681435971,-500.0,9.984e-05,2]
[348621074,1736681435980,-503.83702249,9.984e-05,2]
[348621075,1736681435989,-459.96177271,9.984e-05,2]
[348621076,1736681435998,-500.0,9.984e-05,2]
[348621077,1736681436007,-500.0,9.984e-05,2]
[348621078,1736681436017,-503.8741479,9.984e-05,2]
[348621079,1736681436027,-500.0,9.984e-05,2]
[348621080,1736681436036,-500.0,9.984e-05,2]
[348621081,1736681436047,-500.0,9.984e-05,2]
[348621082,1736681436056,-500.0,9.984e-05,2]
[348621083,1736681436065,-500.0,9.984e-05,2]
[348621084,1736681436074,-500.0,9.984e-05,2]
[348621085,1736681436082,-504.07263845,9.984e-05,2]
[348621086,1736681436091,-500.0,9.984e-05,2]
[348621087,1736681436101,-500.0,9.984e-05,2]
[348621088,1736681436110,-500.0,9.984e-05,2]
[348621089,1736681436119,-523.08,9.984e-05,2]
[348621090,1736681436127,-501.77485595,9.984e-05,2]
[348621091,1736681436137,-500.77967767,9.984e-05,2]
[348621092,1736681436146,-500.0,9.984e-05,2]
[348621093,1736681436156,-500.0,9.984e-05,2]
[348621094,1736681436168,-503.38593241,9.984e-05,2]
[348621095,1736681436178,-501.71954857,9.984e-05,2]
[348621096,1736681436190,-501.48072244,9.984e-05,2]
[348621097,1736681436200,-500.0,9.984e-05,2]
[348621098,1736681436210,-500.0,9.984e-05,2]
[348621099,1736681436219,-500.0,9.984e-05,2]
[348621100,1736681436228,-500.0,9.984e-05,2]
[348621101,1736681436238,-500.32362983,9.984e-05,2]
[348621102,1736681436249,-500.0,9.984e-05,2]
[348621103,1736681436259,-506.44609881,9.984e-05,2]
[348621104,1736681436268,-502.24599228,9.984e-05,2]
[348621105,1736681436278,-387.19186097,9.984e-05,2]
[348621106,1736681436287,-501.15604331,9.984e-05,2]
[348621107,1736681436297,-501.01657842,9.984e-05,2]
[348621108,1736681436307,-500.57618709,9.984e-05,2]
[348621109,1736681436316,-689.75,9.984e-05,2]
[348621110,1736681436326,-500.60984247,9.984e-05,2]
[348621111,1736681436338,-500.0,9.984e-05,2]
[348621112,1736681436347,-500.0,9.984e-05,2]
[348621113,1736681436356,-500.0,9.984e-05,2]
[348621114,1736681436368,-1481.7,9.984e-05,2]